[Event "Titled Tuesday Blitz June 22 2021"]
[White "Drygalov, Sergey"]
[Black "Firat, Burak"]
[WhiteFideId "24171743"]
[BlackFideId "6305881"]
[WhiteElo "2514"]
[BlackElo "2531"]
[Result "1/2-1/2"]
[Round "09"]
[TimeControl "180+1"]
[Date "2021.06.22"]
[WhiteClock "0:00:08"]
[BlackClock "0:00:21"]

1. d4 {[%clk 0:03:00]}  Nf6 {[%clk 0:02:59]} 2. c4 {[%clk 0:03:00]}  e6 {[%clk 0:03:00]} 3. Nf3 {[%clk 0:03:01]}  d5 {[%clk 0:03:00]} 4. Nc3 {[%clk 0:03:01]}  c6 {[%clk 0:02:57]} 5. Bg5 {[%clk 0:02:59]}  Nbd7 {[%clk 0:02:54]} 6. e3 {[%clk 0:02:59]}  Qa5 {[%clk 0:02:54]} 7. cxd5 {[%clk 0:02:49]}  Nxd5 {[%clk 0:02:55]} 8. Rc1 {[%clk 0:02:49]}  b6 {[%clk 0:02:54]} 9. Bd3 {[%clk 0:02:49]}  Nxc3 {[%clk 0:02:53]} 10. bxc3 {[%clk 0:02:48]}  Ba3 {[%clk 0:02:53]} 11. Rc2 {[%clk 0:02:47]}  Ba6 {[%clk 0:02:50]} 12. O-O {[%clk 0:02:47]}  h6 {[%clk 0:02:49]} 13. Bh4 {[%clk 0:02:36]}  O-O {[%clk 0:02:45]} 14. Qe2 {[%clk 0:02:36]}  Bxd3 {[%clk 0:02:43]} 15. Qxd3 {[%clk 0:02:37]}  Rfe8 {[%clk 0:02:33]} 16. Bg3 {[%clk 0:02:34]}  Rad8 {[%clk 0:02:23]} 17. Qe4 {[%clk 0:02:10]}  Qd5 {[%clk 0:02:07]} 18. Nd2 {[%clk 0:01:35]}  Nf6 {[%clk 0:01:57]} 19. Qxd5 {[%clk 0:01:34]}  cxd5 {[%clk 0:01:58]} 20. c4 {[%clk 0:01:20]}  Rc8 {[%clk 0:01:57]} 21. Nb1 {[%clk 0:01:20]}  Be7 {[%clk 0:01:35]} 22. Rfc1 {[%clk 0:01:19]}  dxc4 {[%clk 0:01:27]} 23. Rxc4 {[%clk 0:01:20]}  Rxc4 {[%clk 0:01:25]} 24. Rxc4 {[%clk 0:01:21]}  Rd8 {[%clk 0:01:21]} 25. Nc3 {[%clk 0:01:15]}  Rd7 {[%clk 0:01:13]} 26. Kf1 {[%clk 0:01:12]}  Rb7 {[%clk 0:01:04]} 27. Rc8+ {[%clk 0:01:08]}  Kh7 {[%clk 0:01:04]} 28. Nb5 {[%clk 0:00:58]}  Ne4 {[%clk 0:00:53]} 29. Rc7 {[%clk 0:00:31]}  Rxc7 {[%clk 0:00:52]} 30. Bxc7 {[%clk 0:00:28]}  a6 {[%clk 0:00:50]} 31. Na7 {[%clk 0:00:27]}  b5 {[%clk 0:00:50]} 32. Nc6 {[%clk 0:00:25]}  Bf8 {[%clk 0:00:49]} 33. Nb8 {[%clk 0:00:20]}  Nc3 {[%clk 0:00:48]} 34. Nxa6 {[%clk 0:00:20]}  Nxa2 {[%clk 0:00:48]} 35. Ke2 {[%clk 0:00:20]}  b4 {[%clk 0:00:43]} 36. Kd3 {[%clk 0:00:19]}  b3 {[%clk 0:00:42]} 37. Ba5 {[%clk 0:00:19]}  Kg6 {[%clk 0:00:33]} 38. Nc5 {[%clk 0:00:19]}  Bxc5 {[%clk 0:00:26]} 39. dxc5 {[%clk 0:00:20]}  Kf6 {[%clk 0:00:26]} 40. Bc3+ {[%clk 0:00:18]}  e5 {[%clk 0:00:24]} 41. Bb2 {[%clk 0:00:17]}  Nb4+ {[%clk 0:00:22]} 42. Kc4 {[%clk 0:00:17]}  Nc6 {[%clk 0:00:22]} 43. Kxb3 {[%clk 0:00:13]}  Ke6 {[%clk 0:00:19]} 44. Kc4 {[%clk 0:00:13]}  f5 {[%clk 0:00:19]} 45. f4 {[%clk 0:00:13]}  exf4 {[%clk 0:00:17]} 46. exf4 {[%clk 0:00:14]}  g5 {[%clk 0:00:18]} 47. g3 {[%clk 0:00:14]}  gxf4 {[%clk 0:00:17]} 48. gxf4 {[%clk 0:00:15]}  h5 {[%clk 0:00:18]} 49. Bc3 {[%clk 0:00:14]}  Ne7 {[%clk 0:00:18]} 50. Be1 {[%clk 0:00:13]}  Nc6 {[%clk 0:00:18]} 51. Bh4 {[%clk 0:00:12]}  Nb8 {[%clk 0:00:18]} 52. Bf2 {[%clk 0:00:09]}  Nc6 {[%clk 0:00:18]} 53. Be3 {[%clk 0:00:09]}  Nb8 {[%clk 0:00:18]} 54. Kd3 {[%clk 0:00:08]}  Kd5 {[%clk 0:00:18]} 55. Bf2 {[%clk 0:00:07]}  Nd7 {[%clk 0:00:19]} 56. Ke3 {[%clk 0:00:06]}  Nxc5 {[%clk 0:00:19]} 57. Kf3 {[%clk 0:00:06]}  Ne6 {[%clk 0:00:18]} 58. Be3 {[%clk 0:00:04]}  Nd4+ {[%clk 0:00:18]} 59. Kg3 {[%clk 0:00:03]}  Ne2+ {[%clk 0:00:18]} 60. Kh4 {[%clk 0:00:03]}  Ke4 {[%clk 0:00:18]} 61. Bd2 {[%clk 0:00:03]}  Nxf4 {[%clk 0:00:19]} 62. Kg5 {[%clk 0:00:02]}  Nh3+ {[%clk 0:00:15]} 63. Kxh5 {[%clk 0:00:02]}  Kf3 {[%clk 0:00:14]} 64. Kg6 {[%clk 0:00:02]}  f4 {[%clk 0:00:14]} 65. Bxf4 {[%clk 0:00:02]}  Nxf4+ {[%clk 0:00:15]} 66. Kf5 {[%clk 0:00:03]}  Nh3 {[%clk 0:00:15]} 67. Kg6 {[%clk 0:00:03]}  Kg2 {[%clk 0:00:15]} 68. Kf7 {[%clk 0:00:04]}  Kf3 {[%clk 0:00:15]} 69. Ke8 {[%clk 0:00:05]}  Kg4 {[%clk 0:00:16]} 70. Kd8 {[%clk 0:00:06]}  Kg5 {[%clk 0:00:16]} 71. Kc7 {[%clk 0:00:05]}  Kf5 {[%clk 0:00:17]} 72. Kb6 {[%clk 0:00:06]}  Ke4 {[%clk 0:00:18]} 73. Ka5 {[%clk 0:00:07]}  Kf3 {[%clk 0:00:19]} 74. Kb4 {[%clk 0:00:08]}  Kg2 {[%clk 0:00:20]} 75. Kc3 {[%clk 0:00:08]}  Kxh2 {[%clk 0:00:21]} 1/2-1/2


[Site "https://www.chess.com"]

[Event "Titled Tuesday Blitz June 22 2021"]
[White "Dubov, Daniil"]
[Black "Hansen, Eric"]
[WhiteFideId "24126055"]
[BlackFideId "2606771"]
[WhiteElo "2722"]
[BlackElo "2568"]
[Result "1-0"]
[Round "09"]
[TimeControl "180+1"]
[Date "2021.06.22"]
[WhiteClock "0:00:46"]
[BlackClock "0:00:06"]

1. d4 {[%clk 0:03:00]}  Nf6 {[%clk 0:02:56]} 2. c4 {[%clk 0:03:00]}  g6 {[%clk 0:02:56]} 3. Nc3 {[%clk 0:02:59]}  d5 {[%clk 0:02:57]} 4. e3 {[%clk 0:02:58]}  Bg7 {[%clk 0:02:57]} 5. cxd5 {[%clk 0:02:59]}  Nxd5 {[%clk 0:02:57]} 6. Bc4 {[%clk 0:03:00]}  Nxc3 {[%clk 0:02:54]} 7. bxc3 {[%clk 0:03:01]}  c5 {[%clk 0:02:55]} 8. Nf3 {[%clk 0:03:00]}  Nc6 {[%clk 0:02:55]} 9. O-O {[%clk 0:02:58]}  O-O {[%clk 0:02:55]} 10. Ba3 {[%clk 0:02:58]}  b6 {[%clk 0:02:53]} 11. dxc5 {[%clk 0:02:58]}  Qc7 {[%clk 0:02:53]} 12. h3 {[%clk 0:02:52]}  Rd8 {[%clk 0:02:46]} 13. Qe2 {[%clk 0:02:48]}  Na5 {[%clk 0:02:43]} 14. Rad1 {[%clk 0:02:42]}  Rxd1 {[%clk 0:02:40]} 15. Rxd1 {[%clk 0:02:42]}  bxc5 {[%clk 0:02:38]} 16. Ng5 {[%clk 0:02:06]}  e6 {[%clk 0:02:37]} 17. Bb5 {[%clk 0:02:00]}  Rb8 {[%clk 0:01:46]} 18. Be8 {[%clk 0:01:53]}  f6 {[%clk 0:01:08]} 19. Bf7+ {[%clk 0:01:46]}  Kh8 {[%clk 0:01:08]} 20. Nxe6 {[%clk 0:01:47]}  Bxe6 {[%clk 0:01:07]} 21. Bxe6 {[%clk 0:01:47]}  Qe5 {[%clk 0:01:03]} 22. Qa6 {[%clk 0:01:34]}  Qxc3 {[%clk 0:01:04]} 23. Qxa7 {[%clk 0:01:30]}  Nc6 {[%clk 0:00:44]} 24. Qxc5 {[%clk 0:01:26]}  Qxc5 {[%clk 0:00:43]} 25. Bxc5 {[%clk 0:01:26]}  f5 {[%clk 0:00:38]} 26. g4 {[%clk 0:01:22]}  fxg4 {[%clk 0:00:37]} 27. hxg4 {[%clk 0:01:23]}  Bf8 {[%clk 0:00:33]} 28. Rc1 {[%clk 0:01:03]}  Bxc5 {[%clk 0:00:26]} 29. Rxc5 {[%clk 0:01:04]}  Nb4 {[%clk 0:00:26]} 30. a4 {[%clk 0:00:59]}  Nd3 {[%clk 0:00:24]} 31. Rb5 {[%clk 0:00:59]}  Ra8 {[%clk 0:00:18]} 32. a5 {[%clk 0:00:57]}  Ra7 {[%clk 0:00:19]} 33. Bc4 {[%clk 0:00:49]}  Ne1 {[%clk 0:00:12]} 34. a6 {[%clk 0:00:48]}  Nf3+ {[%clk 0:00:05]} 35. Kg2 {[%clk 0:00:47]}  Nd2 {[%clk 0:00:06]} 36. Rb8+ {[%clk 0:00:46]} 1-0


[Site "https://www.chess.com"]

[Event "Titled Tuesday Blitz June 22 2021"]
[White "Indjic, Aleksandar"]
[Black "Moroni, Luca Jr"]
[WhiteFideId "911925"]
[BlackFideId "865834"]
[WhiteElo "2643"]
[BlackElo "2491"]
[Result "1-0"]
[Round "09"]
[TimeControl "180+1"]
[Date "2021.06.22"]
[WhiteClock "0:00:06"]
[BlackClock "0:00:04"]

1. d4 {[%clk 0:03:00]}  d5 {[%clk 0:02:58]} 2. c4 {[%clk 0:03:01]}  e6 {[%clk 0:02:58]} 3. Nc3 {[%clk 0:03:02]}  Nf6 {[%clk 0:02:57]} 4. Nf3 {[%clk 0:03:00]}  c6 {[%clk 0:02:58]} 5. Qd3 {[%clk 0:02:58]}  Nbd7 {[%clk 0:02:26]} 6. Bf4 {[%clk 0:02:42]}  dxc4 {[%clk 0:02:22]} 7. Qxc4 {[%clk 0:02:40]}  Qa5 {[%clk 0:02:16]} 8. Bd2 {[%clk 0:02:37]}  Qb6 {[%clk 0:02:01]} 9. Rb1 {[%clk 0:02:29]}  c5 {[%clk 0:01:54]} 10. e3 {[%clk 0:02:20]}  Be7 {[%clk 0:01:48]} 11. Bd3 {[%clk 0:02:13]}  O-O {[%clk 0:01:47]} 12. O-O {[%clk 0:02:13]}  cxd4 {[%clk 0:01:44]} 13. exd4 {[%clk 0:02:11]}  Qd8 {[%clk 0:01:36]} 14. Qb3 {[%clk 0:02:08]}  b6 {[%clk 0:01:34]} 15. Qd1 {[%clk 0:01:57]}  Bb7 {[%clk 0:01:34]} 16. Qe2 {[%clk 0:01:57]}  Nd5 {[%clk 0:01:33]} 17. Rbd1 {[%clk 0:01:51]}  Rc8 {[%clk 0:01:30]} 18. Rfe1 {[%clk 0:01:49]}  Qc7 {[%clk 0:01:30]} 19. Bb1 {[%clk 0:01:47]}  Rfe8 {[%clk 0:01:04]} 20. Qd3 {[%clk 0:01:37]}  g6 {[%clk 0:01:02]} 21. h4 {[%clk 0:00:52]}  Nf4 {[%clk 0:00:58]} 22. Bxf4 {[%clk 0:00:45]}  Qxf4 {[%clk 0:00:58]} 23. Ne4 {[%clk 0:00:42]}  Nf6 {[%clk 0:00:32]} 24. Neg5 {[%clk 0:00:40]}  Qg4 {[%clk 0:00:21]} 25. Qf1 {[%clk 0:00:32]}  Bd6 {[%clk 0:00:16]} 26. Ne5 {[%clk 0:00:26]}  Bxe5 {[%clk 0:00:15]} 27. dxe5 {[%clk 0:00:26]}  Qxh4 {[%clk 0:00:09]} 28. Nh3 {[%clk 0:00:11]}  Nd5 {[%clk 0:00:06]} 29. Re4 {[%clk 0:00:10]}  Qh6 {[%clk 0:00:05]} 30. Rdd4 {[%clk 0:00:09]}  Red8 {[%clk 0:00:05]} 31. Rh4 {[%clk 0:00:09]}  Qg7 {[%clk 0:00:05]} 32. Be4 {[%clk 0:00:07]}  Qxe5 {[%clk 0:00:05]} 33. Bf3 {[%clk 0:00:07]}  Ne7 {[%clk 0:00:05]} 34. Rxd8+ {[%clk 0:00:06]}  Rxd8 {[%clk 0:00:06]} 35. Bxb7 {[%clk 0:00:06]}  Nf5 {[%clk 0:00:05]} 36. Rf4 {[%clk 0:00:06]}  Qxb2 {[%clk 0:00:05]} 37. Bf3 {[%clk 0:00:05]}  Nd4 {[%clk 0:00:05]} 38. g3 {[%clk 0:00:04]}  Qxa2 {[%clk 0:00:05]} 39. Kg2 {[%clk 0:00:03]}  Qc2 {[%clk 0:00:05]} 40. Be4 {[%clk 0:00:03]}  Qd2 {[%clk 0:00:05]} 41. Qd3 {[%clk 0:00:03]}  Qxd3 {[%clk 0:00:05]} 42. Bxd3 {[%clk 0:00:04]}  e5 {[%clk 0:00:05]} 43. Re4 {[%clk 0:00:04]}  Ne6 {[%clk 0:00:06]} 44. Re3 {[%clk 0:00:04]}  Nc5 {[%clk 0:00:03]} 45. Be2 {[%clk 0:00:04]}  e4 {[%clk 0:00:03]} 46. Ng5 {[%clk 0:00:03]}  Rd4 {[%clk 0:00:04]} 47. f4 {[%clk 0:00:03]}  a5 {[%clk 0:00:04]} 48. Bb5 {[%clk 0:00:02]}  h6 {[%clk 0:00:04]} 49. Nh3 {[%clk 0:00:02]}  Rd2+ {[%clk 0:00:04]} 50. Nf2 {[%clk 0:00:03]}  Rb2 {[%clk 0:00:03]} 51. Bc6 {[%clk 0:00:02]}  a4 {[%clk 0:00:04]} 52. Bxe4 {[%clk 0:00:02]}  Nxe4 {[%clk 0:00:05]} 53. Rxe4 {[%clk 0:00:02]}  b5 {[%clk 0:00:03]} 54. Re8+ {[%clk 0:00:02]}  Kg7 {[%clk 0:00:03]} 55. Ra8 {[%clk 0:00:03]}  Rb3 {[%clk 0:00:03]} 56. Ne4 {[%clk 0:00:03]}  a3 {[%clk 0:00:03]} 57. Nc5 {[%clk 0:00:03]}  Rb2+ {[%clk 0:00:03]} 58. Kf3 {[%clk 0:00:03]}  b4 {[%clk 0:00:04]} 59. Ra7 {[%clk 0:00:03]}  a2 {[%clk 0:00:04]} 60. Ne6+ {[%clk 0:00:03]}  Kf6 {[%clk 0:00:04]} 61. Nd4 {[%clk 0:00:04]}  b3 {[%clk 0:00:03]} 62. Kg4 {[%clk 0:00:04]}  Rb1 {[%clk 0:00:03]} 63. Nxb3 {[%clk 0:00:05]}  Rxb3 {[%clk 0:00:03]} 64. Ra6+ {[%clk 0:00:05]}  Rb6 {[%clk 0:00:04]} 65. Rxb6+ {[%clk 0:00:05]}  Kg7 {[%clk 0:00:03]} 66. Ra6 {[%clk 0:00:05]}  h5+ {[%clk 0:00:03]} 67. Kh3 {[%clk 0:00:06]}  g5 {[%clk 0:00:03]} 68. Rxa2 {[%clk 0:00:06]}  g4+ {[%clk 0:00:04]} 69. Kh4 {[%clk 0:00:06]} 1-0


[Site "https://www.chess.com"]

[Event "Titled Tuesday Blitz June 22 2021"]
[White "Kollars, Dmitrij"]
[Black "Onyshchuk, Volodymyr"]
[WhiteFideId "12909572"]
[BlackFideId "14114038"]
[WhiteElo "2576"]
[BlackElo "2603"]
[Result "0-1"]
[Round "09"]
[TimeControl "180+1"]
[Date "2021.06.22"]
[WhiteClock "0:00:01"]
[BlackClock "0:01:00"]

1. e4 {[%clk 0:03:00]}  d6 {[%clk 0:02:59]} 2. d4 {[%clk 0:03:00]}  Nf6 {[%clk 0:03:00]} 3. Nc3 {[%clk 0:03:00]}  g6 {[%clk 0:03:00]} 4. f4 {[%clk 0:02:58]}  Bg7 {[%clk 0:03:00]} 5. Nf3 {[%clk 0:02:58]}  O-O {[%clk 0:03:00]} 6. e5 {[%clk 0:02:58]}  dxe5 {[%clk 0:02:59]} 7. fxe5 {[%clk 0:02:59]}  Nd5 {[%clk 0:03:00]} 8. Bc4 {[%clk 0:02:59]}  Nxc3 {[%clk 0:03:00]} 9. bxc3 {[%clk 0:03:00]}  c5 {[%clk 0:03:00]} 10. O-O {[%clk 0:02:59]}  Bg4 {[%clk 0:03:00]} 11. Be3 {[%clk 0:02:53]}  Nc6 {[%clk 0:02:59]} 12. Rb1 {[%clk 0:02:46]}  Rc8 {[%clk 0:02:51]} 13. h3 {[%clk 0:02:23]}  cxd4 {[%clk 0:02:42]} 14. cxd4 {[%clk 0:02:18]}  Bxf3 {[%clk 0:02:40]} 15. Qxf3 {[%clk 0:01:53]}  Nxe5 {[%clk 0:02:40]} 16. dxe5 {[%clk 0:01:51]}  Rxc4 {[%clk 0:02:40]} 17. e6 {[%clk 0:01:44]}  fxe6 {[%clk 0:02:31]} 18. Qxb7 {[%clk 0:01:44]}  Rxf1+ {[%clk 0:02:28]} 19. Rxf1 {[%clk 0:01:44]}  Bf6 {[%clk 0:02:17]} 20. Qb3 {[%clk 0:01:33]}  Qc8 {[%clk 0:02:07]} 21. Bxa7 {[%clk 0:01:25]}  Rxc2 {[%clk 0:02:05]} 22. a4 {[%clk 0:01:11]}  Qc6 {[%clk 0:02:03]} 23. Bf2 {[%clk 0:01:08]}  Bg7 {[%clk 0:01:53]} 24. Qb8+ {[%clk 0:00:58]}  Kf7 {[%clk 0:01:35]} 25. a5 {[%clk 0:00:51]}  Bf6 {[%clk 0:01:34]} 26. Qb6 {[%clk 0:00:49]}  Qxb6 {[%clk 0:01:16]} 27. Bxb6 {[%clk 0:00:49]}  Ra2 {[%clk 0:01:16]} 28. Rf2 {[%clk 0:00:41]}  Ra1+ {[%clk 0:01:14]} 29. Rf1 {[%clk 0:00:41]}  Ra2 {[%clk 0:01:14]} 30. Rf2 {[%clk 0:00:41]}  Ra4 {[%clk 0:01:13]} 31. g4 {[%clk 0:00:38]}  h6 {[%clk 0:01:12]} 32. Be3 {[%clk 0:00:18]}  g5 {[%clk 0:01:08]} 33. Bb6 {[%clk 0:00:16]}  e5 {[%clk 0:01:08]} 34. Rc2 {[%clk 0:00:16]}  e4 {[%clk 0:01:07]} 35. Kf2 {[%clk 0:00:14]}  Be5 {[%clk 0:01:05]} 36. Rc8 {[%clk 0:00:12]}  Bf4 {[%clk 0:01:04]} 37. Ra8 {[%clk 0:00:11]}  Ra2+ {[%clk 0:01:03]} 38. Kf1 {[%clk 0:00:08]}  e3 {[%clk 0:01:03]} 39. Kg1 {[%clk 0:00:04]}  e2 {[%clk 0:01:01]} 40. Bf2 {[%clk 0:00:02]}  Be3 {[%clk 0:01:00]} 41. Kg2 {[%clk 0:00:01]}  e1=Q {[%clk 0:01:00]} 0-1


[Site "https://www.chess.com"]

[Event "Titled Tuesday Blitz June 22 2021"]
[White "Kovalev, Vladislav"]
[Black "Nakamura, Hikaru"]
[WhiteFideId "13504398"]
[BlackFideId "2016192"]
[WhiteElo "2573"]
[BlackElo "2900"]
[Result "0-1"]
[Round "09"]
[TimeControl "180+1"]
[Date "2021.06.22"]
[WhiteClock "0:00:05"]
[BlackClock "0:00:57"]

1. e4 {[%clk 0:03:00]}  g6 {[%clk 0:02:56]} 2. d4 {[%clk 0:03:00]}  Bg7 {[%clk 0:02:56]} 3. Nc3 {[%clk 0:03:01]}  a6 {[%clk 0:02:57]} 4. a4 {[%clk 0:02:56]}  d6 {[%clk 0:02:57]} 5. g3 {[%clk 0:02:57]}  Nd7 {[%clk 0:02:46]} 6. Bg2 {[%clk 0:02:56]}  c5 {[%clk 0:02:46]} 7. Nge2 {[%clk 0:02:55]}  cxd4 {[%clk 0:02:46]} 8. Nxd4 {[%clk 0:02:56]}  Ngf6 {[%clk 0:02:46]} 9. O-O {[%clk 0:02:56]}  O-O {[%clk 0:02:47]} 10. a5 {[%clk 0:02:52]}  Ne5 {[%clk 0:02:39]} 11. h3 {[%clk 0:02:50]}  Bd7 {[%clk 0:02:35]} 12. Re1 {[%clk 0:02:23]}  Nc4 {[%clk 0:02:29]} 13. Nb3 {[%clk 0:02:21]}  Rc8 {[%clk 0:02:26]} 14. Ra2 {[%clk 0:02:14]}  e5 {[%clk 0:02:17]} 15. Bg5 {[%clk 0:01:46]}  Be6 {[%clk 0:02:16]} 16. Nd5 {[%clk 0:01:43]}  h6 {[%clk 0:02:14]} 17. Nxf6+ {[%clk 0:01:40]}  Bxf6 {[%clk 0:02:14]} 18. Bxh6 {[%clk 0:01:41]}  Re8 {[%clk 0:02:13]} 19. Be3 {[%clk 0:01:23]}  Nxa5 {[%clk 0:02:04]} 20. Nxa5 {[%clk 0:00:50]}  Bxa2 {[%clk 0:02:03]} 21. Nxb7 {[%clk 0:00:50]}  Qc7 {[%clk 0:02:03]} 22. Qxd6 {[%clk 0:00:47]}  Be7 {[%clk 0:01:42]} 23. Qxc7 {[%clk 0:00:36]}  Rxc7 {[%clk 0:01:43]} 24. Na5 {[%clk 0:00:36]}  Rxc2 {[%clk 0:01:40]} 25. Bf1 {[%clk 0:00:30]}  Be6 {[%clk 0:01:39]} 26. Bxa6 {[%clk 0:00:20]}  Bb4 {[%clk 0:01:29]} 27. Ra1 {[%clk 0:00:19]}  Ra8 {[%clk 0:01:29]} 28. Bd3 {[%clk 0:00:09]}  Rxb2 {[%clk 0:01:29]} 29. Bc1 {[%clk 0:00:04]}  Ra2 {[%clk 0:01:28]} 30. Rxa2 {[%clk 0:00:04]}  Bxa2 {[%clk 0:01:29]} 31. Nc6 {[%clk 0:00:05]}  Bd6 {[%clk 0:01:26]} 32. Bb2 {[%clk 0:00:06]}  f6 {[%clk 0:01:24]} 33. Bb5 {[%clk 0:00:02]}  Be6 {[%clk 0:01:23]} 34. Bc3 {[%clk 0:00:02]}  Bxh3 {[%clk 0:01:23]} 35. Bc4+ {[%clk 0:00:02]}  Kg7 {[%clk 0:01:23]} 36. Bd5 {[%clk 0:00:03]}  Ra3 {[%clk 0:01:19]} 37. Bd2 {[%clk 0:00:02]}  Rd3 {[%clk 0:01:19]} 38. Be3 {[%clk 0:00:03]}  Rd1+ {[%clk 0:01:05]} 39. Kh2 {[%clk 0:00:03]}  Bf1 {[%clk 0:01:05]} 40. Nd8 {[%clk 0:00:03]}  g5 {[%clk 0:01:03]} 41. Ne6+ {[%clk 0:00:04]}  Kg6 {[%clk 0:01:03]} 42. g4 {[%clk 0:00:04]}  Be2 {[%clk 0:01:03]} 43. Kg3 {[%clk 0:00:04]}  Rg1+ {[%clk 0:01:02]} 44. Kh2 {[%clk 0:00:04]}  Rxg4 {[%clk 0:01:03]} 45. Nd8 {[%clk 0:00:04]}  Bf3 {[%clk 0:01:00]} 46. Be6 {[%clk 0:00:04]}  Rxe4 {[%clk 0:00:57]} 47. Bf7+ {[%clk 0:00:04]}  Kg7 {[%clk 0:00:57]} 48. Bd5 {[%clk 0:00:04]}  Rh4+ {[%clk 0:00:57]} 49. Kg3 {[%clk 0:00:05]}  Bxd5 {[%clk 0:00:57]} 0-1


[Site "https://www.chess.com"]

[Event "Titled Tuesday Blitz June 22 2021"]
[White "Maximov, Dmitry"]
[Black "Lazavik, Denis"]
[WhiteFideId "14105659"]
[BlackFideId "13515110"]
[WhiteElo "2494"]
[BlackElo "2436"]
[Result "1/2-1/2"]
[Round "09"]
[TimeControl "180+1"]
[Date "2021.06.22"]
[WhiteClock "0:00:06"]
[BlackClock "0:00:02"]

1. e4 {[%clk 0:03:00]}  e5 {[%clk 0:02:58]} 2. Nf3 {[%clk 0:03:00]}  Nc6 {[%clk 0:02:58]} 3. Bb5 {[%clk 0:03:00]}  a6 {[%clk 0:02:57]} 4. Ba4 {[%clk 0:03:01]}  Nf6 {[%clk 0:02:56]} 5. O-O {[%clk 0:03:01]}  Be7 {[%clk 0:02:55]} 6. Re1 {[%clk 0:03:01]}  b5 {[%clk 0:02:53]} 7. Bb3 {[%clk 0:03:01]}  d6 {[%clk 0:02:53]} 8. c3 {[%clk 0:03:00]}  O-O {[%clk 0:02:53]} 9. h3 {[%clk 0:03:00]}  Bb7 {[%clk 0:02:53]} 10. d3 {[%clk 0:02:58]}  Na5 {[%clk 0:02:53]} 11. Bc2 {[%clk 0:02:59]}  c5 {[%clk 0:02:53]} 12. Nbd2 {[%clk 0:02:58]}  Re8 {[%clk 0:02:54]} 13. Nf1 {[%clk 0:02:58]}  h6 {[%clk 0:02:54]} 14. Ng3 {[%clk 0:02:58]}  Bf8 {[%clk 0:02:54]} 15. Bd2 {[%clk 0:02:48]}  Nc6 {[%clk 0:02:47]} 16. Nh2 {[%clk 0:02:44]}  d5 {[%clk 0:02:43]} 17. Qe2 {[%clk 0:02:40]}  g6 {[%clk 0:02:36]} 18. Rad1 {[%clk 0:02:40]}  Bg7 {[%clk 0:02:29]} 19. Qf3 {[%clk 0:02:40]}  d4 {[%clk 0:01:53]} 20. Ng4 {[%clk 0:02:39]}  Nxg4 {[%clk 0:01:50]} 21. Qxg4 {[%clk 0:02:39]}  Qc8 {[%clk 0:01:43]} 22. Qf3 {[%clk 0:02:37]}  Qe6 {[%clk 0:01:29]} 23. Bb3 {[%clk 0:02:10]}  c4 {[%clk 0:01:29]} 24. dxc4 {[%clk 0:02:09]}  bxc4 {[%clk 0:01:27]} 25. Ba4 {[%clk 0:02:09]}  Red8 {[%clk 0:01:24]} 26. b3 {[%clk 0:01:54]}  d3 {[%clk 0:01:10]} 27. bxc4 {[%clk 0:01:46]}  Na5 {[%clk 0:01:10]} 28. Rb1 {[%clk 0:01:40]}  Qxc4 {[%clk 0:01:02]} 29. Bb3 {[%clk 0:01:20]}  Nxb3 {[%clk 0:01:01]} 30. axb3 {[%clk 0:01:17]}  Qc6 {[%clk 0:00:58]} 31. Re3 {[%clk 0:01:15]}  f5 {[%clk 0:00:58]} 32. exf5 {[%clk 0:01:04]}  Qxf3 {[%clk 0:00:37]} 33. gxf3 {[%clk 0:01:03]}  Bf6 {[%clk 0:00:34]} 34. h4 {[%clk 0:00:32]}  Kf7 {[%clk 0:00:22]} 35. fxg6+ {[%clk 0:00:32]}  Kxg6 {[%clk 0:00:23]} 36. Kg2 {[%clk 0:00:28]}  Re8 {[%clk 0:00:21]} 37. Rh1 {[%clk 0:00:26]}  Rad8 {[%clk 0:00:21]} 38. Ne4 {[%clk 0:00:23]}  Be7 {[%clk 0:00:19]} 39. Rh3 {[%clk 0:00:21]}  Kf5 {[%clk 0:00:18]} 40. Ng3+ {[%clk 0:00:20]}  Ke6 {[%clk 0:00:18]} 41. Ne4 {[%clk 0:00:17]}  Rg8+ {[%clk 0:00:17]} 42. Kf1 {[%clk 0:00:16]}  h5 {[%clk 0:00:16]} 43. c4 {[%clk 0:00:13]}  Rd4 {[%clk 0:00:08]} 44. Ng3 {[%clk 0:00:10]}  Rxh4 {[%clk 0:00:06]} 45. Rxh4 {[%clk 0:00:10]}  Bxh4 {[%clk 0:00:06]} 46. Nxh5 {[%clk 0:00:11]}  Rd8 {[%clk 0:00:05]} 47. Nf4+ {[%clk 0:00:10]}  Kf5 {[%clk 0:00:04]} 48. Nxd3 {[%clk 0:00:11]}  Bf6 {[%clk 0:00:05]} 49. Bc3 {[%clk 0:00:11]}  e4 {[%clk 0:00:04]} 50. fxe4+ {[%clk 0:00:11]}  Bxe4 {[%clk 0:00:04]} 51. Bxf6 {[%clk 0:00:09]}  Rxd3 {[%clk 0:00:03]} 52. Rxd3 {[%clk 0:00:09]}  Bxd3+ {[%clk 0:00:04]} 53. Ke1 {[%clk 0:00:09]}  Kxf6 {[%clk 0:00:05]} 54. Kd2 {[%clk 0:00:10]}  Bf5 {[%clk 0:00:04]} 55. Kc3 {[%clk 0:00:10]}  Ke5 {[%clk 0:00:04]} 56. Kb4 {[%clk 0:00:10]}  Kd4 {[%clk 0:00:04]} 57. Ka5 {[%clk 0:00:10]}  Bc8 {[%clk 0:00:04]} 58. Kb6 {[%clk 0:00:10]}  Kc3 {[%clk 0:00:04]} 59. c5 {[%clk 0:00:07]}  Kxb3 {[%clk 0:00:04]} 60. f4 {[%clk 0:00:06]}  Kc4 {[%clk 0:00:04]} 61. f5 {[%clk 0:00:06]}  Bxf5 {[%clk 0:00:02]} 62. Kxa6 {[%clk 0:00:06]}  Kxc5 {[%clk 0:00:02]} 1/2-1/2


[Site "https://www.chess.com"]